Cogmind - Beta 13 @@@ ROGUE MODE // 2024.04.17 @ 13:33:40 Player: SovietPaperclip Result: Destroyed by H-77 Assassin with High-powered Shotgun Performance ------------- Evolutions (6) 3000 Regions Visited (24) 4800 Robots Destroyed (153) 765 Value Destroyed (4384) 4384 Prototype IDs (37) 740 Alien Tech Used (0) 0 Bonus (3337) 3337 TOTAL SCORE: 17026 Bonus ------- Follower Combat Kills 1437 Network Hubs Disabled 200 Met Data Miner 300 Met Imprinter 300 Built Enhanced Grunts 300 A7 Reached Mainframe 300 Met R17 at Cetus 500 Cogmind --------- Core Integrity 0/1150 Matter 163/300 Energy 100/100 System Corruption 0% Temperature Cool (0) Movement Core (50) Location -4/Factory Parts ------- > --- POWER (2) -------- (None) > --- PROPULSION (7) --- (None) > --- UTILITY (8) ------ Improved Coolant Injector Graphene Brace > --- WEAPON (2) ------- (None) > --- INVENTORY (5) ---- Precision Matter Filter Quantum Capacitor Advanced Thermal Shield Improved Shock Absorption System Peak State ------------ > --- POWER ------------ Neutrino Core Micro Fission Core > --- PROPULSION ------- Nuclear Pulse Thruster Biomechanical Wings Field Propulsion Array Field Propulsion Array > --- UTILITY ---------- Advanced Cooling System Large Storage Unit Enhanced Optical Array Advanced Signal Interpreter Improved Weapon Cycler Improved Hacking Suite Advanced System Shield > --- WEAPON ----------- Enhanced Quantum Rifle Enhanced Quantum Rifle > --- INVENTORY -------- F-cell Engine Hybrid Antimatter Reactor Cooled Cesium-ion Thruster Improved Coolant Injector Matter Compressor Advanced Sensor Array Long-range Terrain Scanner Experimental Terrain Scan Processor Core Analyzer Makeshift Transmission Jammer Cloaking Device Thermal Shield Hacking Suite Long-range Missile Launcher Improved Plasma Cutter [Rating: 111] Favorites ----------- Power Micro Nuclear Core Engine F-cell Engine Power Core Micro Nuclear Core Reactor Cold Fusion Reactor Propulsion Aerolev Unit Treads Light Treads Leg Aluminum Leg Hover Unit Aerolev Unit Flight Unit Cooled Cesium-ion Thruster Utility Large Storage Unit Device Improved Sensor Array Storage Large Storage Unit Processor Machine Analyzer Hackware Advanced System Shield Protection Hardened Light Armor Plating Weapon Heavy Assault Rifle Energy Gun Enhanced Quantum Rifle Energy Cannon Matter Neutralizer Ballistic Gun Heavy Assault Rifle Launcher Mini Grenade Launcher Special Weapon Plasma Cutter Impact Weapon Powered Hammer Slashing Weapon Chainsword Build | -11 -10 -9 -9 -9 -8 -8 -7 -7 -7 -7 -6 -6 -6 -6 -6 -6 -6 -5 -5 -5 -5 -5 -5 -4 ------- Run | Yrd Mat Mat Min Exi Min Mat Fac Low Low Zio Pro Fac Was Fac Low Low Dat Pro Fac Ext Cet Arc Hub Fac Slots Evolved 12 | . . 2 . . . 2 2 . . . . 2 . . . . . . 2 . . . . 2 Power 1 | . . . . . . . 1 . . . . . . . . . . . . . . . . . Propulsion 5 | . . 1 . . . 1 1 . . . . 1 . . . . . . . . . . . 1 Utility 6 | . . 1 . . . 1 . . . . . 1 . . . . . . 2 . . . . 1 Weapon . | . . . . . . . . . . . . . . . . . . . . . . . . . Parts Attached 365 | 6 . 19 2 . . 24 19 2 2 3 2 139 4 38 13 1 . 3 19 30 11 5 10 13 Power 45 | 1 . 2 . . . 3 2 . . . . 24 1 4 . . . . 1 3 1 1 . 2 Engine 15 | 1 . 2 . . . . . . . . . 9 . 1 . . . . . . 1 1 . . Core 29 | . . . . . . 3 2 . . . . 15 1 2 . . . . 1 3 . . . 2 Reactor 1 | . . . . . . . . . . . . . . 1 . . . . . . . . . . Propulsion 65 | 2 . 7 . . . 8 7 . . . . 26 1 5 2 1 . 1 1 2 1 . . 1 Treads 15 | 2 . 5 . . . 7 . . . . . . . . . . . . . . . . . 1 Leg 2 | . . 2 . . . . . . . . . . . . . . . . . . . . . . Wheel . | . . . . . . . . . . . . . . . . . . . . . . . . . Hover 26 | . . . . . . 1 6 . . . . 17 . 2 . . . . . . . . . . Flight 22 | . . . . . . . 1 . . . . 9 1 3 2 1 . 1 1 2 1 . . . Utility 150 | 1 . 6 1 . . 6 8 2 . 3 . 58 2 14 4 . . . 10 14 4 3 6 8 Device 101 | . . 2 . . . . 4 1 . . . 41 2 12 3 . . . 8 13 2 3 3 7 Storage 8 | 1 . 1 . . . 1 . . . 1 . 3 . . . . . . . . . . 1 . Processor 13 | . . 1 1 . . 1 2 . . 2 . 2 . . 1 . . . 2 1 . . . . Hackware 9 | . . . . . . . 1 . . . . 4 . 2 . . . . . . 1 . 1 . Protection 19 | . . 2 . . . 4 1 1 . . . 8 . . . . . . . . 1 . 1 1 Artifact . | . . . . . . . . . . . . . . . . . . . . . . . . . Weapon 105 | 2 . 4 1 . . 7 2 . 2 . 2 31 . 15 7 . . 2 7 11 5 1 4 2 Energy Gun 15 | . . . . . . . . . . . . . . . . . . . 3 11 1 . . . Energy Cannon 33 | . . . . . . . . . . . . 11 . 14 1 . . 1 3 . . 1 . 2 Ballistic Gun 10 | 2 . 4 . . . 3 . . . . . . . . . . . . . . 1 . . . Ballistic Cannon . | . . . . . . . . . . . . . . . . . . . . . . . . . Launcher 17 | . . . 1 . . 3 . . 1 . 1 4 . . 1 . . 1 1 . 2 . 2 . Special Weapon 7 | . . . . . . . 1 . . . . 3 . . 1 . . . . . . . 2 . Impact Weapon 15 | . . . . . . 1 1 . 1 . 1 11 . . . . . . . . . . . . Slashing Weapon 8 | . . . . . . . . . . . . 2 . 1 4 . . . . . 1 . . . Piercing Weapon . | . . . . . . . . . . . . . . . . . . . . . . . . . Special Melee Weapon . | . . . . . . . . . . . . . . . . . . . . . . . . . Unidentified Prototypes 23 | . . 1 . . . 1 1 . . 2 . 6 . 3 2 . . . . . 3 1 2 1 Parts Lost 61 | . . 7 . . . 2 . . . . 1 20 . 1 . 1 . . 3 2 1 . 13 10 Power 11 | . . 1 . . . 1 . . . . 1 3 . . . . . . . 1 . . 2 2 Propulsion 22 | . . 3 . . . 1 . . . . . 9 . . . 1 . . 1 1 1 . 4 1 Utility 19 | . . 1 . . . . . . . . . 5 . 1 . . . . 1 . . . 5 6 Weapon 9 | . . 2 . . . . . . . . . 3 . . . . . . 1 . . . 2 1 Highest Loss Streak 13 | . . 4 . . . 1 . . . . 1 4 . 1 . 1 . . 3 2 1 . 13 5 To Critical Strikes . | . . . . . . . . . . . . . . . . . . . . . . . . . Average Slot Usage (%) 83 | . 85 84 100 100 100 97 89 92 92 92 90 82 74 80 79 80 73 73 76 78 78 82 82 39 Engine 4 | . 14 9 11 11 11 1 . . . . . 3 6 6 6 6 6 6 5 4 . 5 4 . Core 6 | . . . . . . 7 12 15 15 15 13 6 1 6 6 6 6 6 4 5 10 5 4 3 Treads 7 | . 28 22 33 33 33 34 . . . . . . . . . . . . . . . . . 3 Hover 14 | . . . . . . . 36 38 38 38 38 28 . . . . . . . . . . . . Flight 7 | . . . . . . . . . . . . 2 33 32 26 26 26 26 23 22 22 23 21 . Device 5 | . . 4 . . . . 12 6 7 2 . 5 13 6 6 6 6 6 10 11 11 11 9 18 Storage 7 | . 14 11 11 11 11 12 7 7 7 7 7 6 6 6 6 6 6 6 5 5 5 5 5 . Processor 12 | . . 8 21 22 22 13 9 15 15 20 23 15 6 6 6 6 6 6 11 11 12 11 10 5 Hackware 4 | . . . . . . . . . . . . 4 6 12 13 13 13 13 11 10 9 11 12 5 Protection 1 | . . . . . . 9 . . . . . . . . . . . . . . . . . . Ballistic Gun 4 | . 28 21 14 11 11 13 . . . . . . . . . . . . . . . . . . Impact Weapon 2 | . . . . . . 1 7 7 7 7 6 4 . . . . . . . . . . . . Naked Turns . | . . . . . . . . . . . . . . . . . . . . . . . . . Heaviest Build 73 | 12 12 40 40 32 32 41 42 40 40 56 55 73 40 50 51 43 40 40 52 59 54 46 41 37 Greatest Support 112 | 40 40 60 60 60 60 112 40 40 40 40 40 59 40 43 43 43 42 48 42 42 42 42 45 27 Greatest Overweight (x) 8 | . . 8 . . . 1 1 . . 1 1 2 . 1 1 . . . 1 1 1 1 4 1 Average Overweight (x) . | . . . . . . . . . . . 1 . . . . . . . . . . . . . Largest Inventory Capacity 20 | 8 8 15 15 15 15 15 15 15 15 20 20 20 15 15 15 15 15 15 15 15 15 15 15 5 Average Capacity 16 | 6 8 13 15 15 15 15 15 15 15 18 20 19 15 15 15 15 15 15 15 15 15 15 14 5 Most Carried 20 | 3 5 15 15 15 15 15 15 15 15 19 19 20 15 15 15 15 15 14 15 15 15 15 15 5 Average Carried 15 | . 2 10 15 15 15 14 14 14 14 17 19 19 14 14 14 14 15 13 12 12 14 14 14 2 Final Capacity 20 | 8 8 15 15 15 15 15 15 15 15 20 20 15 15 15 15 15 15 15 15 15 15 15 5 5 Final Carried 19 | 1 5 15 15 15 15 15 14 15 15 19 19 14 15 15 15 15 14 14 13 14 15 15 5 5 Class Distribution -------------------- 26% | Mutant 16% | Assassin 14% | Scavenger-Mutant 11% | Hacker-Sprinter 11% | Scout 7% | Hacker-Mutant 4% | Hacker-Scout 3% | Commander-Scout Dominant Class ---------------- Mutant | -10/Materials Scavenger-Mutant | -9/Materials Scavenger-Mutant | -9/Mines Scavenger-Mutant | -9/Exiles Scavenger-Mutant | -8/Mines Mutant | -8/Materials Scout | -7/Factory Scout | -7/Lower Caves Scout | -7/Lower Caves Mutant | -7/Zion Mutant | -6/Proximity Caves Assassin | -6/Factory Scout | -6/Waste Hacker-Sprinter | -6/Factory Hacker-Sprinter | -6/Lower Caves Hacker-Sprinter | -6/Lower Caves Hacker-Sprinter | -6/Data Miner Hacker-Sprinter | -5/Proximity Caves Hacker-Scout | -5/Factory Hacker-Scout | -5/Extension Commander-Scout | -5/Cetus Commander-Scout | -5/Archives Hacker-Ninja | -5/Hub_04(d) Mutant | -4/Factory Resources | -11 -10 -9 -9 -9 -8 -8 -7 -7 -7 -7 -6 -6 -6 -6 -6 -6 -6 -5 -5 -5 -5 -5 -5 -4 ----------- Run | Yrd Mat Mat Min Exi Min Mat Fac Low Low Zio Pro Fac Was Fac Low Low Dat Pro Fac Ext Cet Arc Hub Fac Matter Collected 6010 | 240 84 857 36 . 18 672 102 110 30 30 40 1508 552 255 260 71 . . 103 745 190 50 50 7 Remotely 74 | . . 74 . . . . . . . . . . . . . . . . . . . . . . Salvage Created 5593 | . 170 1322 32 . 44 1004 45 76 116 . 198 1181 . 184 14 . . . 53 295 21 312 392 134 Parts 303 | . 12 92 5 . 5 55 . . 10 . 3 47 . 6 4 . . . 3 14 3 27 11 6 Haulers Intercepted 16 | . . 6 . . . 3 . . . . . 3 . . . . . . . . . . 4 . Recyclers Shooed 2 | . 1 1 . . . . . . . . . . . . . . . . . . . . . . Parts Field Recycled . | . . . . . . . . . . . . . . . . . . . . . . . . . Retrieved Matter . | . . . . . . . . . . . . . . . . . . . . . . . . . Parts Self-Destructed 11 | . . . . . . . . 1 5 . . . . . 3 2 . . . . . . . . Prevented 8 | . . . . . . . . . 5 . 3 . . . . . . . . . . . . . Kills | -11 -10 -9 -9 -9 -8 -8 -7 -7 -7 -7 -6 -6 -6 -6 -6 -6 -6 -5 -5 -5 -5 -5 -5 -4 ------- Run | Yrd Mat Mat Min Exi Min Mat Fac Low Low Zio Pro Fac Was Fac Low Low Dat Pro Fac Ext Cet Arc Hub Fac Combat Hostiles Destroyed 92 | . 5 22 3 . 4 18 1 1 4 . 3 14 . 1 3 . . . 4 6 . . . 3 Melee 8 | . . . . . . 2 . 1 . . . 5 . . . . . . . . . . . . Guns 44 | . 5 22 . . 1 10 . . . . . . . . . . . . . 6 . . . . Cannons 6 | . . . . . . . . . . . . 1 . 1 . . . . 2 . . . . 2 AOE 25 | . . . 3 . 3 6 . . 4 . 2 2 . . 3 . . . 2 . . . . . Classes Destroyed 16 | . 4 6 . . . 3 . 1 . . . 2 . . . . . . . . . . . . Worker 8 | . . 2 . . . . . . . . . 5 . . . . . . . . . . . 1 Builder 7 | . . . . . . 1 . . . . . 4 . . . . . . . 1 . . . 1 Tunneler 1 | . . 1 . . . . . . . . . . . . . . . . . . . . . . Hauler 16 | . . 6 . . . 3 . . . . . 3 . . . . . . . . . . 4 . Recycler 4 | . . 1 . . . 1 . . . . . 1 . 1 . . . . . . . . . . Minesweeper 1 | . . . . . . . . 1 . . . . . . . . . . . . . . . . Mechanic 1 | . . 1 . . . . . . . . . . . . . . . . . . . . . . Operator 15 | . 1 1 . . . 1 1 . . . . 1 . . . . . . . . . 9 1 . Watcher 8 | . 1 3 . . . 1 . . . . . 2 . . . . . . . . 1 . . . Swarmer 39 | . 3 9 3 . 4 3 1 . 4 . . . . . 3 . . . 4 4 . . . 1 Grunt 26 | . 2 8 . . . 10 . 1 . . 2 3 . . . . . . . . . . . . Brawler 1 | . . . . . . 1 . . . . . . . . . . . . . . . . . . Duelist 3 | . . . . . . 2 . . . . 1 . . . . . . . . . . . . . Sentry 11 | . . 5 . . . 2 . . . . . 2 . . . . . . . 2 . . . . Hunter 3 | . . . . . . . . . . . . 1 . . . . . . . . . . . 2 Programmer 9 | . . . . . . . . . . . . 8 . 1 . . . . . . . . . . Best Kill Streak 9 | . 4 6 3 . 4 6 1 2 4 . 3 7 . 2 3 . . . 3 4 1 9 4 2 Combat Bots Only 6 | . 4 4 3 . 4 6 1 1 4 . 3 3 . 1 3 . . . 3 3 . . . 1 Max Kills in Single Turn 7 | . 1 1 2 . 3 2 1 1 3 . 1 7 . 1 2 . . . 2 1 1 1 1 1 Gunslinging . | . . . . . . . . . . . . . . . . . . . . . . . . . Exploded 3 | . . . 2 . 3 2 . . 3 . 1 1 . . 2 . . . 2 . . . . . Melee 1 | . . . . . . 1 . 1 . . . 1 . . . . . . . . . . . . Uniques/NPCs Destroyed . | . . . . . . . . . . . . . . . . . . . . . . . . . Combat | -11 -10 -9 -9 -9 -8 -8 -7 -7 -7 -7 -6 -6 -6 -6 -6 -6 -6 -5 -5 -5 -5 -5 -5 -4 -------- Run | Yrd Mat Mat Min Exi Min Mat Fac Low Low Zio Pro Fac Was Fac Low Low Dat Pro Fac Ext Cet Arc Hub Fac Hostile Shots Fired 912 | . 11 153 11 . 16 93 9 8 1 . 10 244 . 10 3 6 . 21 11 27 1 . 69 208 Missed 260 | . 5 43 3 . 5 30 1 2 . . 3 81 . 3 . 3 . 10 5 4 1 . 12 49 Damage Taken 11939 | . 53 1262 68 . 123 1094 113 90 18 . 189 3417 . 168 62 56 . 217 165 367 41 . 1869 2567 Core 3218 | . . 176 9 . 24 75 14 30 18 . 5 696 . 45 7 . . 94 . 49 . . 815 1161 Absorbed by Shields 37 | . . . . . . . . . . . . . . . . . . . . 24 13 . . . Ignored by Resistances 16 | . . . . . . . . . . . . 4 . . . . . . . . . . . 12 Regen/Repaired (Parts) 610 | . . . . . . . . . . 151 . 296 . 163 . . . . . . . . . . Core Remaining (%) 62 | 100 100 . . . 47 86 . . . . 90 . . . . . . . . . . . 13 . Volleys Fired 348 | . 15 114 2 . 5 77 . . 2 . 4 27 . 21 7 . . 7 15 20 2 . 1 29 Largest 2 | . 2 2 2 . 2 2 . . 1 . 1 1 . 1 1 . . 1 1 2 2 . 1 1 Hottest 130 | . 40 46 53 . 53 53 . . 39 . 39 105 . 105 105 . . 105 105 130 130 . 46 105 Shots Fired 541 | . 30 221 4 . 6 126 . . 2 . 4 26 . 20 7 . . 7 15 40 3 . 1 29 Gun 427 | . 30 221 2 . 5 119 . . . . . . . . . . . . 8 40 2 . . . Cannon 85 | . . . . . . . . . . . . 21 . 20 4 . . 6 5 . . . . 29 Launcher 29 | . . . 2 . 1 7 . . 2 . 4 5 . . 3 . . 1 2 . 1 . 1 . Special . | . . . . . . . . . . . . . . . . . . . . . . . . . Kinetic 377 | . 30 221 2 . 5 119 . . . . . . . . . . . . . . . . . . Thermal 135 | . . . . . . . . . . . . 21 . 20 4 . . 6 13 40 2 . . 29 Explosive 17 | . . . 2 . 1 7 . . . . . . . . 3 . . 1 2 . 1 . . . Electromagnetic 12 | . . . . . . . . . 2 . 4 5 . . . . . . . . . . 1 . Robot Hit Streak 16 | . 7 16 . . 3 10 . . . . . 13 . 2 3 . . . 4 7 10 . . 11 Robot Miss Streak 5 | . 3 5 . . 1 3 . . . . . . . 5 . . . . 2 3 . . . 2 Penetration Max . | . . . . . . . . . . . . . . . . . . . . . . . . . Secondary Targets 4 | . 1 1 . . . 1 . . . . . . . . . . . . . 1 . . . . Max Gunslinging Chain 1 | . 1 1 . . . 1 . . . . . . . . . . . . . 1 . . . . Shots Hit Robots 408 | . 20 156 . . 3 90 4 6 . . 3 56 . 2 1 . . . 5 16 3 16 8 19 Core Hits 193 | . 10 53 3 . 4 46 . 1 6 . 5 19 . 1 3 . . . 4 7 6 9 8 8 Critical Kills 7 | . . 2 . . . 1 . . . . . 2 . 1 . . . . . . . . . 1 Critical Parts Destroyed 16 | . . 2 . . . 1 . . . . 1 12 . . . . . . . . . . . . Critical Strikes 25 | . . 4 . . . 2 . . . . 1 14 . 1 . . . . . . . . 2 1 Meltdown 2 | . . . . . . . . . . . . . . 1 . . . . . . . . . 1 Destroy 5 | . . 4 . . . 1 . . . . . . . . . . . . . . . . . . Smash 16 | . . . . . . 1 . . . . 1 14 . . . . . . . . . . . . Sever 2 | . . . . . . . . . . . . . . . . . . . . . . . 2 . Melee Attacks 207 | . . . . . . 6 15 8 . 1 3 148 . . 1 . . . . . . 16 9 . Impact 159 | . . . . . . 6 15 8 . 1 3 126 . . . . . . . . . . . . Slashing 48 | . . . . . . . . . . . . 22 . . 1 . . . . . . 16 9 . Piercing . | . . . . . . . . . . . . . . . . . . . . . . . . . Sneak Attacks 26 | . . . . . . 1 2 1 . . . 8 . . . . . . . . . 9 5 . Combat Hostiles . | . . . . . . . . . . . . . . . . . . . . . . . . . Follow-up Attacks . | . . . . . . . . . . . . . . . . . . . . . . . . . Damage Inflicted 14216 | . 238 2151 100 . 218 1890 260 337 140 . 335 3785 . 119 346 . . . 523 486 212 1322 836 918 Guns 4261 | . 238 2151 . . 47 1249 . . . . . . . . . . . . 32 486 58 . . . Cannons 1393 | . . . . . . . . . . . . 255 . 119 . . . . 107 . . . . 912 Explosions 3278 | . . . 100 . 171 443 . . 140 . 199 1084 . . 346 . . . 384 . 154 . 257 . Melee 5265 | . . . . . . 198 260 337 . . 136 2446 . . . . . . . . . 1322 566 . Ramming 19 | . . . . . . . . . . . . . . . . . . . . . . . 13 6 Kinetic 3685 | . 238 2151 . . 47 1249 . . . . . . . . . . . . . . . . . . Thermal 2670 | . . . . . . . . . . . . 956 . 119 . . . . 139 486 58 . . 912 Explosive 1711 | . . . 100 . 171 443 . . . . . 113 . . 346 . . . 384 . 154 . . . Electromagnetic 866 | . . . . . . . . . 140 . 199 270 . . . . . . . . . . 257 . Impact 3236 | . . . . . . 198 260 337 . . 136 2305 . . . . . . . . . . . . Slashing 2029 | . . . . . . . . . . . . 141 . . . . . . . . . 1322 566 . Piercing . | . . . . . . . . . . . . . . . . . . . . . . . . . Highest Corruption 28 | . . . . . . . . . . . . 23 23 27 27 27 27 28 . . . . 13 . Average Corruption 15 | . . . . . . . . . . . . 9 23 25 27 27 27 27 . . . . 7 . Corruption Purged . | . . . . . . . . . . . . . . . . . . . . . . . . . Corruption Blocked . | . . . . . . . . . . . . . . . . . . . . . . . . . Effects 175 | . . . . . . . . . . . . 96 6 37 21 5 . 9 . . . . 1 . Message Errors 39 | . . . . . . . . . . . . 21 1 8 6 1 . 2 . . . . . . Matter Fused 44 | . . . . . . . . . . . . 30 3 6 4 . . 1 . . . . . . Heat Flow Errors 22 | . . . . . . . . . . . . 12 1 5 3 1 . . . . . . . . Energy Discharges 27 | . . . . . . . . . . . . 11 1 6 5 1 . 3 . . . . . . Parts Rejected 4 | . . . . . . . . . . . . 2 . 2 . . . . . . . . . . Parts Fused 3 | . . . . . . . . . . . . 2 . . . 1 . . . . . . . . Data Loss (minor) 17 | . . . . . . . . . . . . 7 . 5 2 1 . 2 . . . . . . Data Loss (major) 8 | . . . . . . . . . . . . 5 . 1 1 . . . . . . . 1 . Alerts 2 | . . . . . . . . . . . . 2 . . . . . . . . . . . . Misdirections 7 | . . . . . . . . . . . . 3 . 3 . . . 1 . . . . . . Weapon Failures 2 | . . . . . . . . . . . . 1 . 1 . . . . . . . . . . Overload Shots . | . . . . . . . . . . . . . . . . . . . . . . . . . Overflow Damage 2126 | . . . . . . 57 120 67 . . 59 1358 . 1 . . . . 53 . . 349 5 57 Projectiles 90 | . . . . . . . . . . . . 32 . 1 . . . . . . . . . 57 Explosions 259 | . . . . . . 9 . . . . . 192 . . . . . . 53 . . . 5 . Melee 1777 | . . . . . . 48 120 67 . . 59 1134 . . . . . . . . . 349 . . Knockbacks 16 | . . . . . . . 1 1 . . . 14 . . . . . . . . . . . . Impact 15 | . . . . . . . 1 1 . . . 13 . . . . . . . . . . . . Kinetic . | . . . . . . . . . . . . . . . . . . . . . . . . . Secondary 1 | . . . . . . . . . . . . 1 . . . . . . . . . . . . Self-Inflicted Damage 493 | . . . . . 33 61 . . . . 6 240 . . 15 . . 39 71 . . . 28 . Shots 12 | . . . . . 1 3 . . . . 1 3 . . 1 . . 1 1 . . . 1 . Rammed 8 | . . . . . . . . . . . . . . . . . . . . . . . 4 4 Targets Rammed 8 | . . . . . . . . . . . . . . . . . . . . . . . 4 4 Kicked . | . . . . . . . . . . . . . . . . . . . . . . . . . Crushed . | . . . . . . . . . . . . . . . . . . . . . . . . . Highest Temperature 385 | . . 19 . . . 70 13 8 16 . 32 385 154 322 304 143 . 240 199 360 36 . 15 259 Average Temperature 86 | . . 8 . . . 15 8 3 8 . 14 100 86 94 70 71 . 108 68 181 23 . 6 120 Received Heat Transfer 2005 | . 12 408 . . . 495 36 54 . . 33 450 . . . . . 9 . 22 . . 225 261 Effects 6 | . . . . . . . . . . . . 2 . 2 . . . . . 1 . . . 1 Energy Bleed 3 | . . . . . . . . . . . . . . 1 . . . . . 1 . . . 1 Interference 3 | . . . . . . . . . . . . 2 . 1 . . . . . . . . . . Siege Activations . | . . . . . . . . . . . . . . . . . . . . . . . . . Robots Corrupted 3 | . . . . . . . . . . . 1 2 . . . . . . . . . . . . Combat Hostiles 3 | . . . . . . . . . . . 1 2 . . . . . . . . . . . . Parts Fried 23 | . . . . . . . 5 2 1 . 2 13 . . . . . . . . . . . . Impact Corruptions 51 | . . . . . . 2 5 2 . . 2 40 . . . . . . . . . . . . Robots Melted 2 | . . . . . . . . . . . . . . 1 . . . . . . . . . 1 Combat Hostiles 1 | . . . . . . . . . . . . . . . . . . . . . . . . 1 Parts Melted 7 | . . . . . . . . . . . . . . 5 . . . . . 1 . . . 1 Heat Transferred 2472 | . . . . . . . . . . . . 659 . 111 . . . . 148 592 74 . . 888 Parts Sabotaged . | . . . . . . . . . . . . . . . . . . . . . . . . . Parts Stolen . | . . . . . . . . . . . . . . . . . . . . . . . . . Parts Stripped . | . . . . . . . . . . . . . . . . . . . . . . . . . Power Chain Reactions . | . . . . . . . . . . . . . . . . . . . . . . . . . Alert | -11 -10 -9 -9 -9 -8 -8 -7 -7 -7 -7 -6 -6 -6 -6 -6 -6 -6 -5 -5 -5 -5 -5 -5 -4 ------- Run | Yrd Mat Mat Min Exi Min Mat Fac Low Low Zio Pro Fac Was Fac Low Low Dat Pro Fac Ext Cet Arc Hub Fac Peak Influence 611 | . 177 290 157 . 100 181 76 . . . . 611 213 327 . . . . 446 523 491 470 295 344 Initial 213 | . . 74 75 . . 39 15 . . . . 65 213 149 . . . . 37 120 180 196 164 80 Average 154 | . 73 122 125 . 34 79 30 . . . . 159 213 140 . . . . 228 281 324 384 136 250 Maximum Alert Level 2 | . . 1 . . . . . . . . . 2 1 1 . . . . 2 2 2 2 1 1 Low Security (%) 67 | 100 100 92 100 . 100 100 100 . . . . 65 . 65 . . . . 34 17 7 6 79 19 Level 1 27 | . . 7 . . . . . . . . . 28 100 34 . . . . 62 74 66 47 20 80 Level 2 4 | . . . . . . . . . . . . 6 . . . . . . 2 8 26 46 . . Level 3 . | . . . . . . . . . . . . . . . . . . . . . . . . . Level 4 . | . . . . . . . . . . . . . . . . . . . . . . . . . Level 5 . | . . . . . . . . . . . . . . . . . . . . . . . . . High Security . | . . . . . . . . . . . . . . . . . . . . . . . . . Max Security . | . . . . . . . . . . . . . . . . . . . . . . . . . Squads Dispatched 48 | . 2 2 . . . 2 2 . . . . 18 . 7 . . . . 5 2 . . 4 4 Investigation 17 | . 1 . . . . 1 . . . . . 7 . 5 . . . . 2 . . . 1 . Extermination 12 | . . . . . . . 1 . . . . 8 . 1 . . . . 1 . . . . 1 Reinforcement 18 | . 1 2 . . . 1 1 . . . . 3 . 1 . . . . 2 2 . . 3 2 Assault 1 | . . . . . . . . . . . . . . . . . . . . . . . . 1 Garrison . | . . . . . . . . . . . . . . . . . . . . . . . . . Intercept . | . . . . . . . . . . . . . . . . . . . . . . . . . Searches Triggered . | . . . . . . . . . . . . . . . . . . . . . . . . . Data Miner Redirects 1 | . . . . . . . . . . . . . . . . . . . . . . . . 1 Construction Impeded 2 | . . . . . . . . . . . . 1 . . . . . . . . . . 1 . Haulers Reinforced 1 | . . . . . . . . . . . . . . . . . . . . . . . 1 . Active Scanning Responses . | . . . . . . . . . . . . . . . . . . . . . . . . . Cargo Convoy Interrupts 1 | . . . . . . . . . . . . 1 . . . . . . . . . . . . Stealth | -11 -10 -9 -9 -9 -8 -8 -7 -7 -7 -7 -6 -6 -6 -6 -6 -6 -6 -5 -5 -5 -5 -5 -5 -4 --------- Run | Yrd Mat Mat Min Exi Min Mat Fac Low Low Zio Pro Fac Was Fac Low Low Dat Pro Fac Ext Cet Arc Hub Fac Distress Signals 9 | . . 2 . . . . . . . . . 4 . . . . . . . 1 1 . 1 . Communications Jammed 1 | . . . . . . . . . . . . . . 1 . . . . . . . . . . Distress Signals 1 | . . . . . . . . . . . . . . 1 . . . . . . . . . . Times Spotted 256 | . 7 32 4 . 4 27 5 1 1 . 7 58 . 10 2 2 . 10 9 18 8 10 24 17 Peak Tracking Total 21 | . 3 4 4 . 4 6 4 1 3 . 3 9 . 2 2 2 . 11 4 4 4 2 21 9 Tactical Retreats 24 | . . 2 . . . 3 2 . . . 1 10 . . . . . 2 1 2 . . . 1 Traps | -11 -10 -9 -9 -9 -8 -8 -7 -7 -7 -7 -6 -6 -6 -6 -6 -6 -6 -5 -5 -5 -5 -5 -5 -4 ------- Run | Yrd Mat Mat Min Exi Min Mat Fac Low Low Zio Pro Fac Was Fac Low Low Dat Pro Fac Ext Cet Arc Hub Fac Traps Triggered 11 | . 1 . . . . 2 1 . . . . 3 . 1 . . . . 2 1 . . . . Indirectly . | . . . . . . . . . . . . . . . . . . . . . . . . . Trap Hack Attempts . | . . . . . . . . . . . . . . . . . . . . . . . . . Triggered . | . . . . . . . . . . . . . . . . . . . . . . . . . Disarmed . | . . . . . . . . . . . . . . . . . . . . . . . . . Reprogrammed 5 | . . . . . . . . . . . . . . . . . . . . 5 . . . . Reused . | . . . . . . . . . . . . . . . . . . . . . . . . . Traps Extracted . | . . . . . . . . . . . . . . . . . . . . . . . . . Installed . | . . . . . . . . . . . . . . . . . . . . . . . . . Triggered 5 | . . . . . . . . 2 . . . 2 . . . 1 . . . . . . . . Objects Rigged 8 | . . . . . . . . . . . . 8 . . . . . . . . . . . . Exploded 1 | . . . . . . . . . . . . 1 . . . . . . . . . . . . Machines | -11 -10 -9 -9 -9 -8 -8 -7 -7 -7 -7 -6 -6 -6 -6 -6 -6 -6 -5 -5 -5 -5 -5 -5 -4 ---------- Run | Yrd Mat Mat Min Exi Min Mat Fac Low Low Zio Pro Fac Was Fac Low Low Dat Pro Fac Ext Cet Arc Hub Fac Machines Disabled 16 | . . 1 . . . 1 . . . . . 9 . . 1 . . . . . . 2 1 1 Max in Single Turn 4 | . . 1 . . . 1 . . . . . 4 . . 1 . . . . . . . . 1 Garrison Access 5 | . . . . . . . 1 . . . . . . 1 . . . . 1 . . . 1 1 Network Hub 1 | . . . . . . . . . . . . . . . . . . . . . . . 1 . Machines Repaired . | . . . . . . . . . . . . . . . . . . . . . . . . . Machines Dismantled . | . . . . . . . . . . . . . . . . . . . . . . . . . Machines Sabotaged 1 | . . . . . . . . . . . . . . . . . . . . . . . 1 . Overloaded Fab Kills . | . . . . . . . . . . . . . . . . . . . . . . . . . Hacking | -11 -10 -9 -9 -9 -8 -8 -7 -7 -7 -7 -6 -6 -6 -6 -6 -6 -6 -5 -5 -5 -5 -5 -5 -4 --------- Run | Yrd Mat Mat Min Exi Min Mat Fac Low Low Zio Pro Fac Was Fac Low Low Dat Pro Fac Ext Cet Arc Hub Fac Machines Accessed 85 | . 2 4 . 1 . 6 3 . 1 . . 25 . 18 . . 4 . 5 4 3 1 8 . Terminals 51 | . 2 3 . . . 6 2 . 1 . . 12 . 9 . . . . 2 4 3 . 7 . Fabricators 6 | . . . . . . . . . . . . 3 . 2 . . . . 1 . . . . . Repair Stations 5 | . . . . . . . . . . . . 2 . 3 . . . . . . . . . . Recycling Units 2 | . . . . . . . . . . . . 2 . . . . . . . . . . . . Scanalyzers 7 | . . 1 . . . . . . . . . 3 . 2 . . . . 1 . . . . . Garrison Access 8 | . . . . . . . 1 . . . . 3 . 2 . . . . 1 . . . 1 . Total Hacks 299 | . 5 14 . 4 . 16 8 . 4 . . 73 . 70 . . 28 . 20 15 10 3 29 . Successful 158 | . 2 10 . 4 . 9 3 . 4 . . 34 . 26 . . 28 . 10 6 5 3 14 . Failed 141 | . 3 4 . . . 7 5 . . . . 39 . 44 . . . . 10 9 5 . 15 . Catastrophic 36 | . 1 . . . . . 1 . . . . 12 . 16 . . . . 1 2 1 . 2 . Database Lockouts . | . . . . . . . . . . . . . . . . . . . . . . . . . Manual 59 | . . . . . . . . . . . . 14 . 26 1 . . . . 5 1 . 12 . Terminals 177 | . 5 6 . . . 16 6 . 4 . . 36 . 46 . . . . 5 15 10 . 28 . Fabricators 17 | . . . . . . . . . . . . 6 . 6 . . . . 5 . . . . . Repair Stations 22 | . . . . . . . . . . . . 10 . 12 . . . . . . . . . . Recycling Units 3 | . . . . . . . . . . . . 3 . . . . . . . . . . . . Scanalyzers 30 | . . 8 . . . . . . . . . 11 . 2 . . . . 9 . . . . . Garrison Access 15 | . . . . . . . 2 . . . . 7 . 4 . . . . 1 . . . 1 . Terminal Hacks 97 | . 2 4 . 4 . 9 2 . 4 . . 10 . 10 . . 28 . 1 5 5 3 10 . Record 27 | . . . . 4 . . . . 4 . . 1 . . . . 11 . . . 4 3 . . Part Schematic 14 | . . . . . . . . . . . . 3 . . . . 9 . . . . . 2 . Robot Schematic 5 | . . . . . . . . . . . . . . . . . 5 . . . . . . . Prototype ID Bank 4 | . . . . . . . . . . . . . . . . . 3 . . . . . 1 . Open Door 1 | . . . . . . . . . . . . . . . . . . . . . 1 . . . Branch Access Points 4 | . . . . . . 1 . . . . . 1 . 1 . . . . . . . . 1 . Terminal Index 2 | . . . . . . . . . . . . 1 . . . . . . . 1 . . . . Alert Level 4 | . . . . . . 2 . . . . . . . 1 . . . . . . . . 1 . Unreport Threat 8 | . . 2 . . . 2 1 . . . . 1 . 1 . . . . . . . . 1 . Locate Traps 3 | . . . . . . . . . . . . . . 2 . . . . . 1 . . . . Reprogram Traps 1 | . . . . . . . . . . . . . . . . . . . . 1 . . . . Recall Investigation 3 | . . . . . . . . . . . . . . 2 . . . . 1 . . . . . Recall Extermination 1 | . . . . . . . . . . . . . . 1 . . . . . . . . . . Hauler Manifests 1 | . 1 . . . . . . . . . . . . . . . . . . . . . . . Registered Components 3 | . . 1 . . . 1 . . . . . . . . . . . . . . . . 1 . Zone Layout 16 | . 1 1 . . . 3 1 . . . . 3 . 2 . . . . . 2 . . 3 . Fabricator Hacks 11 | . . . . . . . . . . . . 4 . 4 . . . . 3 . . . . . Load Schematic 5 | . . . . . . . . . . . . 2 . 2 . . . . 1 . . . . . Build 6 | . . . . . . . . . . . . 2 . 2 . . . . 2 . . . . . Repair Station Hacks 17 | . . . . . . . . . . . . 9 . 8 . . . . . . . . . . Scan Component 10 | . . . . . . . . . . . . 5 . 5 . . . . . . . . . . Repair 7 | . . . . . . . . . . . . 4 . 3 . . . . . . . . . . Recycling Unit Hacks 1 | . . . . . . . . . . . . 1 . . . . . . . . . . . . Report Inventory 1 | . . . . . . . . . . . . 1 . . . . . . . . . . . . Scanalyzer 18 | . . 6 . . . . . . . . . 7 . . . . . . 5 . . . . . Insert Component 11 | . . 3 . . . . . . . . . 5 . . . . . . 3 . . . . . Analyze 7 | . . 3 . . . . . . . . . 2 . . . . . . 2 . . . . . Garrison Access Hacks 4 | . . . . . . . 1 . . . . . . 1 . . . . 1 . . . 1 . Seal Access 4 | . . . . . . . 1 . . . . . . 1 . . . . 1 . . . 1 . Unauthorized Hacks 10 | . . . . . . . . . . . . 3 . 3 . . . . . 1 . . 3 . Terminals 10 | . . . . . . . . . . . . 3 . 3 . . . . . 1 . . 3 . Assimilate 1 | . . . . . . . . . . . . . . 1 . . . . . . . . . . Botnet 7 | . . . . . . . . . . . . 2 . 2 . . . . . 1 . . 2 . Detonate 1 | . . . . . . . . . . . . 1 . . . . . . . . . . . . Sabotage 1 | . . . . . . . . . . . . . . . . . . . . . . . 1 . Fabricators . | . . . . . . . . . . . . . . . . . . . . . . . . . Repair Stations . | . . . . . . . . . . . . . . . . . . . . . . . . . Recycling Units . | . . . . . . . . . . . . . . . . . . . . . . . . . Scanalyzers . | . . . . . . . . . . . . . . . . . . . . . . . . . Garrison Access . | . . . . . . . . . . . . . . . . . . . . . . . . . Data Cores Recovered . | . . . . . . . . . . . . . . . . . . . . . . . . . Used . | . . . . . . . . . . . . . . . . . . . . . . . . . Hacking Detections 70 | . 2 3 . . . 4 2 . . . . 25 . 17 . . . . 4 4 2 . 7 . Full Trace Events 15 | . . 1 . . . . . . . . . 7 . 5 . . . . 2 . . . . . Feedback Events . | . . . . . . . . . . . . . . . . . . . . . . . . . Feedback Blocked . | . . . . . . . . . . . . . . . . . . . . . . . . . Robot Schematics Acquired 9 | . . . . . . . . . . 4 . . . . . . 5 . . . . . . . Robots Built . | . . . . . . . . . . . . . . . . . . . . . . . . . Authchips . | . . . . . . . . . . . . . . . . . . . . . . . . . Time . | . . . . . . . . . . . . . . . . . . . . . . . . . Total Robot Build Rating . | . . . . . . . . . . . . . . . . . . . . . . . . . Part Schematics Acquired 34 | . . 3 . . . . . . . 15 . 4 . . . . 9 . 1 . . . 2 . Parts Built 7 | . . . . . . . . . . . . 2 . 2 . . . . 3 . . . . . Authchips . | . . . . . . . . . . . . . . . . . . . . . . . . . Time 428 | . . . . . . . . . . . . 142 . 170 . . . . 116 . . . . . Total Part Build Rating 44 | . . . . . . . . . . . . 8 . 13 . . . . 23 . . . . . Parts Repaired 7 | . . . . . . . . . . . . 4 . 3 . . . . . . . . . . Time 423 | . . . . . . . . . . . . 253 . 170 . . . . . . . . . . Parts Recycled . | . . . . . . . . . . . . . . . . . . . . . . . . . Recycled Matter . | . . . . . . . . . . . . . . . . . . . . . . . . . Retrieved Matter . | . . . . . . . . . . . . . . . . . . . . . . . . . Retrieved Components . | . . . . . . . . . . . . . . . . . . . . . . . . . Parts Scanalyzed 9 | . . 3 . . . . . . . . . 4 . . . . . . 2 . . . . . Part Schematics Acquired 5 | . . 3 . . . . . . . . . 1 . . . . . . 1 . . . . . Parts Damaged 3 | . . . . . . . . . . . . 1 . . . . . . 2 . . . . . Bothacking | -11 -10 -9 -9 -9 -8 -8 -7 -7 -7 -7 -6 -6 -6 -6 -6 -6 -6 -5 -5 -5 -5 -5 -5 -4 ------------ Run | Yrd Mat Mat Min Exi Min Mat Fac Low Low Zio Pro Fac Was Fac Low Low Dat Pro Fac Ext Cet Arc Hub Fac Used RIF Installer . | . . . . . . . . . . . . . . . . . . . . . . . . . Robots Hacked . | . . . . . . . . . . . . . . . . . . . . . . . . . Non-combat . | . . . . . . . . . . . . . . . . . . . . . . . . . Combat . | . . . . . . . . . . . . . . . . . . . . . . . . . Robot Hacks Applied . | . . . . . . . . . . . . . . . . . . . . . . . . . Relay Couplers Released 1 | . . . . . . . . . . . . . . . . . . . . . . . . 1 Machine Destruction 1 | . . . . . . . . . . . . . . . . . . . . . . . . 1 Fabnet Peak Effective % . | . . . . . . . . . . . . . . . . . . . . . . . . . Robots Rewired 9 | . . . . . . . . . . . . . . . . . . . . 9 . . . . Allies Hacked . | . . . . . . . . . . . . . . . . . . . . . . . . . Hacks Repelled . | . . . . . . . . . . . . . . . . . . . . . . . . . Allies | -11 -10 -9 -9 -9 -8 -8 -7 -7 -7 -7 -6 -6 -6 -6 -6 -6 -6 -5 -5 -5 -5 -5 -5 -4 -------- Run | Yrd Mat Mat Min Exi Min Mat Fac Low Low Zio Pro Fac Was Fac Low Low Dat Pro Fac Ext Cet Arc Hub Fac Total Allies 27 | . . . 1 . . . . . . 4 . . . 1 . . . 1 . 15 5 . . . Largest Group 11 | . . . 1 1 1 . . . . 4 4 . . 1 . . . 1 . 9 11 9 6 . Highest-Rated Group 785 | . . . 31 31 31 . . . . 104 104 . . 26 . . . 96 . 408 785 713 446 . Highest-Rated Ally 159 | . . . 31 31 31 . . . . 31 31 . . 26 . . . 96 . 159 159 146 96 . Total Orders 1 | . . . . . . . . . . . . . . . . . . . . 1 . . . . GUARD 1 | . . . . . . . . . . . . . . . . . . . . 1 . . . . Ally Attacks 183 | . . . . . . . . . . . 15 . . . . . . 4 . 64 52 32 16 . Total Damage 5039 | . . . . . . . . . . . 301 . . . . . . 48 . 1582 1641 1047 420 . Kills 29 | . . . . . . . . . . . . . . . . . . . . 9 11 4 5 . Allies Corrupted . | . . . . . . . . . . . . . . . . . . . . . . . . . Allies Melted 1 | . . . . . . . . . . . . . . . . . . 1 . . . . . . Intel | -11 -10 -9 -9 -9 -8 -8 -7 -7 -7 -7 -6 -6 -6 -6 -6 -6 -6 -5 -5 -5 -5 -5 -5 -4 ------- Run | Yrd Mat Mat Min Exi Min Mat Fac Low Low Zio Pro Fac Was Fac Low Low Dat Pro Fac Ext Cet Arc Hub Fac Robot Analysis Total . | . . . . . . . . . . . . . . . . . . . . . . . . . Derelict Logs Recovered 5 | . . . . . . . . . . 1 1 . . . 2 . . 1 . . . . . . Drone Launches . | . . . . . . . . . . . . . . . . . . . . . . . . . Drone Recoveries . | . . . . . . . . . . . . . . . . . . . . . . . . . Exploration | -11 -10 -9 -9 -9 -8 -8 -7 -7 -7 -7 -6 -6 -6 -6 -6 -6 -6 -5 -5 -5 -5 -5 -5 -4 ------------- Run | Yrd Mat Mat Min Exi Min Mat Fac Low Low Zio Pro Fac Was Fac Low Low Dat Pro Fac Ext Cet Arc Hub Fac Turns Passed 13176 | 66 332 1186 205 210 194 1246 375 277 236 703 285 4129 124 832 373 101 24 169 408 444 338 195 303 421 Spaces Moved 15367 | 38 170 435 123 132 113 557 772 612 537 972 247 3538 426 1939 899 342 81 480 848 494 464 292 607 249 Core 129 | 6 . 2 . . . . . . . . . . . . . . . . . . . . 1 120 Treads 1611 | 32 170 355 123 132 113 557 . . . . . . . . . . . . . . . . . 129 Legs 78 | . . 78 . . . . . . . . . . . . . . . . . . . . . . Wheels . | . . . . . . . . . . . . . . . . . . . . . . . . . Hover 6143 | . . . . . . . 772 612 537 972 247 3003 . . . . . . . . . . . . Flight 7406 | . . . . . . . . . . . . 535 426 1939 899 342 81 480 848 494 464 292 606 . Fastest Speed 21 | 50 160 160 160 160 160 160 36 36 36 36 96 25 25 25 29 29 29 21 28 28 29 29 26 50 Average Speed 59 | 142 160 167 160 160 160 167 36 36 36 64 96 76 25 25 29 29 29 28 28 33 32 29 29 112 Slowest Speed 450 | 160 160 450 160 160 160 240 96 36 36 96 96 156 25 107 109 29 29 29 108 112 109 109 360 250 Overloaded Moves 51 | . . . . . . . . . . . . . . . . . . 40 . . . . 11 . Propulsion Burnouts . | . . . . . . . . . . . . . . . . . . . . . . . . . Robots Hopped 40 | . . . . . . . . . . . . 7 . 13 . . . . 6 7 . . 7 . Cave-ins Triggered 3 | . . . . . . . . . . . . 3 . . . . . . . . . . . . Exploration Rate (%) 53 | 4 32 47 31 49 39 48 22 73 73 83 45 64 95 41 85 53 69 60 14 61 91 99 41 12 Regions Visited 24 Branch Regions 15 Pre-discovered Areas 4 | . . . . 1 . . . . . 2 . . . . . . 1 . . . . . . . Known Exits Taken 19 | . . . 1 1 1 1 1 1 1 1 1 . . 1 1 1 1 1 1 1 1 1 1 . Unknown Exits Taken 3 | 1 1 1 . . . . . . . . . . . . . . . . . . . . . . Scrap Searched 17 | . . . . . 1 . . 2 4 3 . . . . 3 2 . 2 . . . . . . Spaces Dug 183 | . . . . . 11 1 6 . . . . 96 . 13 4 . . 34 6 11 . . 1 . Terrain Destroyed 503 | . . . 12 . 11 48 6 . . . . 207 . 17 69 . . 34 47 23 25 . 1 3 Melee 90 | . . . . . . 1 6 . . . . 82 . . . . . . . . . . 1 . Projectile 74 | . . . . . . . . . . . . 14 . 17 4 . . 6 7 23 . . . 3 AOE 339 | . . . 12 . 11 47 . . . . . 111 . . 65 . . 28 40 . 25 . . . Terrain Rammed . | . . . . . . . . . . . . . . . . . . . . . . . . . Walls Destroyed . | . . . . . . . . . . . . . . . . . . . . . . . . . Machines Disabled . | . . . . . . . . . . . . . . . . . . . . . . . . . Actions | -11 -10 -9 -9 -9 -8 -8 -7 -7 -7 -7 -6 -6 -6 -6 -6 -6 -6 -5 -5 -5 -5 -5 -5 -4 --------- Run | Yrd Mat Mat Min Exi Min Mat Fac Low Low Zio Pro Fac Was Fac Low Low Dat Pro Fac Ext Cet Arc Hub Fac Total 18492 | 50 200 674 126 131 120 735 839 653 576 1045 283 4634 445 2253 999 343 81 503 992 726 648 375 703 358 Wait 1735 | . 12 67 . . 3 35 12 31 35 60 28 638 . 226 69 . . 13 62 116 154 55 65 54 Move 15266 | 37 169 434 122 131 112 556 771 611 536 971 246 3524 425 1912 898 341 80 479 835 480 463 291 593 249 Hop 37 | . . . . . . . . . . . . 6 . 13 . . . . 6 6 . . 6 . Pick Up 189 | 7 4 30 . . . 18 9 1 . 7 . 51 7 13 3 . . . 8 9 6 3 7 6 Fast Attach 65 | . . . . . . 2 2 . . . . 35 1 9 5 . . . 1 2 3 2 . 3 Attach 136 | 6 . 12 . . . 6 9 . 1 1 . 40 . 17 . 1 . 1 12 13 4 1 2 10 Detach 66 | . . . . . . . 3 . 1 . . 21 1 13 . 1 . 1 7 9 5 . 1 3 Swap 164 | . . 7 2 . . 16 8 2 1 2 2 64 3 12 8 . . 2 6 15 4 2 8 . Drop 168 | . . 10 . . . 19 10 . . 3 . 63 8 17 8 . 1 . 4 6 7 5 7 . Fire 348 | . 15 114 2 . 5 77 . . 2 . 4 27 . 21 7 . . 7 15 20 2 . 1 29 Melee 207 | . . . . . . 6 15 8 . 1 3 148 . . 1 . . . . . . 16 9 . Ram 4 | . . . . . . . . . . . . . . . . . . . . . . . 4 . Kick . | . . . . . . . . . . . . . . . . . . . . . . . . . Crush 4 | . . . . . . . . . . . . . . . . . . . . . . . . 4 Escape Stasis 68 | . . . . . . . . . . . . 14 . . . . . . 36 18 . . . . Rewire 32 | . . . . . . . . . . . . . . . . . . . . 32 . . . . Trap . | . . . . . . . . . . . . . . . . . . . . . . . . . Miscellaneous 3 | . . . . . . . . . . . . 3 . . . . . . . . . . . . Route ------- -11/Scrapyard -10/Materials -9/Materials (discovered 2 exits: [*Min x2]) -9/Mines (discovered 2 exits: *Exi / *Zio) -9/Exiles -8/Mines -8/Materials (discovered 2 exits: *Fac / Sto) -7/Factory -7/Lower Caves -7/Lower Caves (discovered 2 exits: *Fac / *Zio) -7/Zion -6/Proximity Caves -6/Factory (discovered 4 exits: *Fac x2 / Low x2) -6/Waste -6/Factory (discovered 4 exits: *Fac x2 / *Low x2) -6/Lower Caves -6/Lower Caves -6/Data Miner -5/Proximity Caves -5/Factory (discovered 5 exits: Fac x2 / *Upp / *Ext x2) -5/Extension (discovered 2 exits: *Fac / *Cet) -5/Cetus (discovered 2 exits: *Fac / *Arc) -5/Archives (discovered 3 exits: *Fac / *Hub x2) -5/Hub_04(d) -4/Factory History --------- Turn | Location | Event 45 | -11/Scrapyard | Discovered new exit (range 15) 67 | -11/Scrapyard | Entered Materials 312 | -10/Materials | Discovered new exit (range 10) 315 | -10/Materials | Build established: Mutant 399 | -10/Materials | Entered another Materials area 399 | -9/Materials | Evolved 2 slots: Propulsion x1, Utility x1 640 | -9/Materials | Discovered new exit (range 16) 947 | -9/Materials | Lost 4 parts (1p3n) 1225 | -9/Materials | Build established: Scavenger-Mutant 1461 | -9/Materials | Discovered new exit (range 13) 1585 | -9/Materials | Entered Mines 1586 | -9/Mines | A Derelict revealed a hidden shortcut to a safe place 1593 | -9/Mines | Identified exit to Zion 1619 | -9/Mines | Met a Derelict bent on vengeance 1769 | -9/Mines | Received a Mining Laser from a helpful Derelict 1783 | -9/Mines | Deemed a non-threat by the Exiles lab entrance 1783 | -9/Mines | Discovered new exit (range 5) 1788 | -9/Mines | Identified exit to Exiles 1790 | -9/Mines | Entered Exiles 1790 | -9/Exiles | Accompanied by 1 ally 1827 | -9/Exiles | Met 8R-AWN 1856 | -9/Exiles | Met EX-HEX 1918 | -9/Exiles | Met EX-DEC 1928 | -9/Exiles | Learned location of Zion (-7) 1984 | -9/Exiles | Discovered new exit (range 10) 1998 | -9/Exiles | Identified exit to Mines 2000 | -9/Exiles | Entered Mines 2000 | -8/Mines | Accompanied by 1 ally 2129 | -8/Mines | Core integrity fell below 50% 2186 | -8/Mines | Discovered new exit (range 5) 2190 | -8/Mines | Identified exit to Materials 2194 | -8/Mines | Entered Materials 2194 | -8/Materials | Evolved 2 slots: Propulsion x1, Utility x1 2775 | -8/Materials | Build established: Mutant 3356 | -8/Materials | Discovered new exit (range 20) 3356 | -8/Materials | Identified exit to Storage 3394 | -8/Materials | Build established: Scavenger-Mutant 3438 | -8/Materials | Identified exit to Factory 3440 | -8/Materials | Entered Factory 3440 | -7/Factory | Evolved 2 slots: Power x1, Propulsion x1 3800 | -7/Factory | Discovered new exit (range 16) 3805 | -7/Factory | Identified exit to Lower Caves 3807 | -7/Factory | Build established: Scout 3815 | -7/Factory | Entered Lower Caves 3917 | -7/Lower Caves | Spotted B-75 Beast 4092 | -7/Lower Caves | Discovered new exit (range 3) 4092 | -7/Lower Caves | Identified exit to Lower Caves 4092 | -7/Lower Caves | Entered another Lower Caves area 4097 | -7/Lower Caves | Discovered new exit (range 5) 4098 | -7/Lower Caves | Identified exit to Factory 4299 | -7/Lower Caves | Discovered exit to Zion (range 13) 4328 | -7/Lower Caves | Entered Zion 4370 | -7/Zion | Gained Derelict followers 4397 | -7/Zion | Discovered new exit (range 12) 4401 | -7/Zion | Identified exit to Proximity Caves 4464 | -7/Zion | Visited the Megawrench Repair Shop 4464 | -7/Zion | Megawrench repaired 7 parts 4471 | -7/Zion | Learned location of Data Miner (-6) 4530 | -7/Zion | Found Prototype Processor 4531 | -7/Zion | Identified Exp. Melee Analysis Suite 4534 | -7/Zion | Found Prototype Processor 4535 | -7/Zion | Identified Exp. Targeting Computer 4536 | -7/Zion | Found Prototype Processor 4540 | -7/Zion | Found Prototype Processor 4702 | -7/Zion | Learned location of Extension (-5) 4822 | -7/Zion | Build established: Mutant 5031 | -7/Zion | Entered Proximity Caves 5031 | -6/Proximity Caves | Accompanied by 4 allies 5097 | -6/Proximity Caves | Lost 4 allies 5256 | -6/Proximity Caves | Learned location of 1 exit from Factory 5272 | -6/Proximity Caves | Spotted B-75 Beast 5306 | -6/Proximity Caves | Discovered exit to Factory (range 11) 5316 | -6/Proximity Caves | Entered Factory 5316 | -6/Factory | Evolved 2 slots: Propulsion x1, Utility x1 5317 | -6/Factory | Identified exit to Factory 5610 | -6/Factory | Identified Exp. Signal Interpreter 5885 | -6/Factory | Identified exit to Lower Caves 6017 | -6/Factory | Build established: Assassin 6199 | -6/Factory | Identified Exp. Terrain Scan Processor 6291 | -6/Factory | Repaired Corrupted Hacking Suite 6944 | -6/Factory | Discovered exit to Factory (range 4) 7225 | -6/Factory | Spotted B-75 Beast 7600 | -6/Factory | Found Prototype Launcher 7600 | -6/Factory | Identified Rocket Array 8118 | -6/Factory | Repaired Broken Gravmag Array 8323 | -6/Factory | Crushed by falling debris 8327 | -6/Factory | Crushed by falling debris 8327 | -6/Factory | Core integrity fell below 50% 8327 | -6/Factory | System corruption reached 10% 8358 | -6/Factory | Lost 4 parts (1n2u1w) 8453 | -6/Factory | Lost 4 parts (1p1n2u) 8538 | -6/Factory | Cargo convoy interrupted 8600 | -6/Factory | Fabricated Field Propulsion Array (x1) 8622 | -6/Factory | Repaired Imp. Proton Missile Launcher 8705 | -6/Factory | Repaired F-cell Engine 8756 | -6/Factory | Build established: Hacker-Mutant 9156 | -6/Factory | Crushed by falling debris 9220 | -6/Factory | Fabricated Lrg. Storage Unit (x1) 9284 | -6/Factory | Core integrity fell below 20% 9445 | -6/Factory | Sucked down chute 9445 | -6/Factory | Entered Waste 9445 | -6/Waste | The area was eerily silent 9488 | -6/Waste | Discovered new exit (range 14) 9491 | -6/Waste | Identified exit to Factory 9569 | -6/Waste | Entered Factory 9864 | -6/Factory | Discovered exit to Factory (range 11) 9906 | -6/Factory | Discovered exit to Factory (range 14) 9982 | -6/Factory | Fabricated Field Propulsion Array? 10076 | -6/Factory | Repaired Broken Hyb. Antimatter Reactor 10139 | -6/Factory | Repaired Adv. Cooling System 10172 | -6/Factory | Build established: Hacker-Sprinter 10229 | -6/Factory | Repaired Broken Lrn. Terrain Scanner 10337 | -6/Factory | Fabricated Phasing Sabre? 10401 | -6/Factory | Entered Lower Caves 10408 | -6/Lower Caves | Encountered a Warlord checkpoint 10537 | -6/Lower Caves | Learned location of 1 exit from Factory 10759 | -6/Lower Caves | Discovered new exit (range 3) 10760 | -6/Lower Caves | Identified exit to Lower Caves 10761 | -6/Lower Caves | Acquired the password to a Derelict Tinkerer's latest research 10766 | -6/Lower Caves | Learned 12 Factory zone layouts 10768 | -6/Lower Caves | Found Prototype Special Weapon 10768 | -6/Lower Caves | Identified Molecular Deconstructor 10774 | -6/Lower Caves | Entered another Lower Caves area 10860 | -6/Lower Caves | Discovered new exit (range 15) 10875 | -6/Lower Caves | Identified exit to Data Miner 10875 | -6/Lower Caves | Entered Data Miner 10875 | -6/Data Miner | Discovered new exit (range 6) 10878 | -6/Data Miner | Identified exit to Proximity Caves 10882 | -6/Data Miner | Met Data Miner 10887 | -6/Data Miner | Learned location of Section 7 (-2) 10887 | -6/Data Miner | Acquired the access code to Warlord's prototype stash 10892 | -6/Data Miner | Received God Mode back door access code from Data Miner 10899 | -6/Data Miner | Entered Proximity Caves 10921 | -5/Proximity Caves | Learned location of 1 exit from Factory 10975 | -5/Proximity Caves | Spotted B-75 Beast 11065 | -5/Proximity Caves | Attracted the attention of an 0b10 outpost 11066 | -5/Proximity Caves | Discovered exit to Factory (range 8) 11068 | -5/Proximity Caves | Entered Factory 11068 | -5/Factory | Evolved 2 slots: Utility x2 11069 | -5/Factory | Identified exit to Extension 11070 | -5/Factory | Identified exit to Factory 11181 | -5/Factory | Lost 3 parts (1n1u1w) 11234 | -5/Factory | Fabricated Enh. Quantum Rifle? 11309 | -5/Factory | Fabricated Adv. Sensor Array (x1) 11317 | -5/Factory | Discovered new exit (range 11) 11325 | -5/Factory | Identified exit to Upper Caves 11466 | -5/Factory | Discovered exit to Extension (range 19) 11476 | -5/Factory | Entered Extension 11568 | -5/Extension | Rescued a captive Derelict 11603 | -5/Extension | Rescued a captive Derelict 11604 | -5/Extension | Rescued a captive Derelict 11668 | -5/Extension | Lost 3 allies 11690 | -5/Extension | Rescued A7 11855 | -5/Extension | Rescued a captive Derelict 11855 | -5/Extension | Rescued a captive Derelict 11877 | -5/Extension | Discovered exit to Factory (range 10) 11877 | -5/Extension | Discovered new exit (range 6) 11879 | -5/Extension | Identified exit to Cetus 11920 | -5/Extension | Entered Cetus 11920 | -5/Cetus | Accompanied by 9 allies (A7) 11925 | -5/Cetus | Acquired a Cetus Manufacturing Module code from A7 11936 | -5/Cetus | Spotted Cetus Guard 11938 | -5/Cetus | Spotted Cetus Guard 11939 | -5/Cetus | Spotted Cetus Guard 11941 | -5/Cetus | Spotted Cetus Guard 11942 | -5/Cetus | Allies destroyed Cetus Guard 11950 | -5/Cetus | Allies destroyed Cetus Guard 11953 | -5/Cetus | Allies destroyed Cetus Guard 11960 | -5/Cetus | Allies destroyed Cetus Guard 11982 | -5/Cetus | Started Cetus Manufacturing Module 11987 | -5/Cetus | Lost 3 allies 12007 | -5/Cetus | Manufactured an Enhanced Grunt 12020 | -5/Cetus | Escorted A7 to Cetus Mainframe 12032 | -5/Cetus | Manufactured an Enhanced Grunt 12057 | -5/Cetus | Manufactured an Enhanced Grunt 12082 | -5/Cetus | Manufactured an Enhanced Grunt 12107 | -5/Cetus | Manufactured an Enhanced Grunt 12122 | -5/Cetus | Discovered new exit (range 21) 12129 | -5/Cetus | Spotted Cetus Guard 12129 | -5/Cetus | Spotted Cetus Guard 12129 | -5/Cetus | Spotted Cetus Guard 12129 | -5/Cetus | Spotted Cetus Guard 12169 | -5/Cetus | Allies destroyed Cetus Guard 12170 | -5/Cetus | Allies destroyed Cetus Guard 12174 | -5/Cetus | Allies destroyed Cetus Guard 12177 | -5/Cetus | Allies destroyed Cetus Guard 12181 | -5/Cetus | Discovered exit to Factory (range 22) 12185 | -5/Cetus | Met Revision 17 12244 | -5/Cetus | Build established: Commander-Scout 12256 | -5/Cetus | Identified exit to Archives 12258 | -5/Cetus | Entered Archives 12258 | -5/Archives | Accompanied by 9 allies (A7) 12264 | -5/Archives | Received a hacking code to weaken MAIN.C 12313 | -5/Archives | Discovered new exit (range 22) 12314 | -5/Archives | Unable to access archive contents 12316 | -5/Archives | Discovered new exit (range 22) 12317 | -5/Archives | Unable to access archive contents 12321 | -5/Archives | Discovered exit to Factory (range 22) 12322 | -5/Archives | Unable to access archive contents 12325 | -5/Archives | Unable to access archive contents 12339 | -5/Archives | Identified exit to Hub_04(d) 12453 | -5/Archives | Entered Hub_04(d) 12453 | -5/Hub_04(d) | Accompanied by 6 allies 12499 | -5/Hub_04(d) | Discovered exit to Factory (range 13) 12674 | -5/Hub_04(d) | Found Prototype Launcher 12675 | -5/Hub_04(d) | Identified Tesla Bomb Launcher 12733 | -5/Hub_04(d) | Network Hub disabled 12734 | -5/Hub_04(d) | Spotted Lightning 12734 | -5/Hub_04(d) | Spotted Lightning 12734 | -5/Hub_04(d) | Spotted Lightning 12734 | -5/Hub_04(d) | Spotted Lightning 12734 | -5/Hub_04(d) | Spotted Lightning 12734 | -5/Hub_04(d) | Spotted Lightning 12734 | -5/Hub_04(d) | Spotted Lightning 12734 | -5/Hub_04(d) | Spotted Lightning 12734 | -5/Hub_04(d) | Spotted Lightning 12750 | -5/Hub_04(d) | Core integrity fell below 50% 12751 | -5/Hub_04(d) | System corruption reached 10% 12755 | -5/Hub_04(d) | Core integrity fell below 20% 12756 | -5/Hub_04(d) | Entered Factory 12756 | -4/Factory | Evolved 2 slots: Propulsion x1, Utility x1 12782 | -4/Factory | Lost 13 parts (2p4n5u2w) 12847 | -4/Factory | Incoming assault squad redirected 12866 | -4/Factory | Lost 3 parts (1p2u) 12952 | -4/Factory | Spotted B-86 Titan 13021 | -4/Factory | Build established: Mutant 13135 | -4/Factory | Core integrity fell below 50% 13140 | -4/Factory | Lost 5 parts (1p1n2u1w) 13153 | -4/Factory | Found Quantum Capacitor 13170 | -4/Factory | Core integrity fell below 20% 13177 | -4/Factory | Destroyed by H-77 Assassin with High-powered Shotgun Last Messages --------------- 13125_ O-32 Director: "IFF HANDSHAKE FAILED. SECURING TERMINAL." 13128_ O-32 Director uses terminal to summon reinforcements. 13128_ ALERT: Hostiles spotted, dispatching reinforcements to Terminal F020. 13128_ O-32 Director locks terminal. 13139_ K-01 Serf cleans the Nuclear Reactor. 13153_ Acquired Quantum Capacitor. 13162_ Slug penetrates Nuclear Reactor. 13164_ Penetrated by Slug. 13165_ Slug penetrates Wall. 13168_ Slug penetrates Nuclear Reactor. 13174_ Penetrated by Slug. 13174_ Slug penetrates Nuclear Reactor. 13174_ Hacking Suite destroyed. 13177_ Penetrated by Slug. 13177_ Adv. Signal Interpreter destroyed. 13177_ Penetrated by Slug. [Achievement: Tester] Map ----- +----------------------------------------------------+ | ????????????????????????????# #????? | | ???????????????????????????## ##???? | | ???????????????????????????# #???? | | ???????????????????????????# T" ????# | | ???????????????????????????# "" ????# | | ???????????????????????????? ?????# | | ?????????????????????????????] !?????# | | ?????????????????????????????# #?????# | | ?????????????????????????????# ####### | | ??????????????????#??????????# + | | ??????????????????# ??????# ####### | | ??????????????????# ### #?????# | | ??????????????????# """ / #?????# | | ??????????????????? """ ### #?????# | | ???????????????? ??? "??????# #?????# | | ???????????????? ??? ?????# #?????# | | ?????????????? #####+###### ####### | | ?????????????? | | ?????????????? | | ?????????????? """ | | ??????????????? """ | | ?????????????? """ | | ???????############## ###### | | ???????# h # """ #????? | | ???????# ! """g + """ ] #???? | | ???????#!! @""" # ^""" #???# | | ???????#!! hg""" # #???# | | ???????#! g g # """ #???# | | ???????############## ^""" #???# | | ????????????????????# """ ###? # | | ????????????????????# #??# ## | | ????????????????????# """ #??? | | ????????????????????# """ #??? | | ????????????????????# """ #??# | | ????????????????????+ ?? | | ????????????????????# ? | | ????????????????????+ "" | | ????????????????????## ########### "T | | ?????????????????????? ??????????# "" | | ?????????????????????? ??????????# | | ?????????????????????? ??????????# | | ?????????????????????? ??????????# | | ????????????????????##+########??# | | ????????????????????# ??# | | ????????????????????# ?# | | ????????????????????# ?# | | ????????????????????# # | | ????????????????????# # | | ????????????????????# + | | ????????????????????# # | +----------------------------------------------------+ Best States ------------- Heat Dissipation 74 Coolant Potential 80 Energy Generation 45 Energy Capacity 710 Matter Stores 400 Matter Capacity 400 Sight Range 22 Robot Scan Range 16 Terrain Scan Range 24 Terrain Scan Density 10 ECM Strength 1 Jamming Range 14 Cloak Strength 2 Armor Coverage 300 Resistance: TH 30 Resistance: EM 25 Weapon Cycling 20 Evasion (%) 65 Targeting Accuracy 12 Core Analysis 6 Recoil Reduction 6 Particle Charging 25 Offensive Hacking 24 Defensive Hacking 14 Item Schematics ----------------- Med. Storage Unit | -9/Materials | Scanalyzed Hacking Suite | -9/Materials | Scanalyzed Adv. Targeting Computer | -9/Materials | Scanalyzed Spear | -7/Zion | Archive 0b10 Decoder Chip [Skirmisher] | -7/Zion | Archive Greatsword | -7/Zion | Archive Cloaking Device | -7/Zion | Archive Imp. Melee Analysis Suite | -7/Zion | Archive Plasma Flamer | -7/Zion | Archive System Restoration Module | -7/Zion | Archive Imp. Component Analysis Suite | -7/Zion | Archive Phasing Sabre | -7/Zion | Archive Mak. Terrain Scan Processor | -7/Zion | Archive Coil Gun | -7/Zion | Archive Beamcaster | -7/Zion | Archive Mak. Shrapnel Gun | -7/Zion | Archive Nuclear Pulse Thruster | -7/Zion | Archive Armor Integrity Analyzer | -7/Zion | Archive Adv. System Shield | -6/Factory | Scanalyzed Lrg. Storage Unit | -6/Factory | Hacked Adv. Sensor Array | -6/Factory | Hacked Field Propulsion Array | -6/Factory | Hacked Combat Drone Bay | -6/Data Miner | Free Lgt. Regenerative Plating | -6/Data Miner | Free Cld. Nuclear Pulse Thruster | -6/Data Miner | Free Imp. Thermal Defense Suite | -6/Data Miner | Free Imp. KE Penetrator | -6/Data Miner | Free Hvy. Siege Treads | -6/Data Miner | Free Graphene Brace | -6/Data Miner | Free Dispersion Rifle | -6/Data Miner | Free Hvy. Gauss Cannon | -6/Data Miner | Free Adv. Cooling System | -5/Factory | Scanalyzed Adv. Hacking Suite | -5/Hub_04(d) | Hacked Q-thruster | -5/Hub_04(d) | Hacked Robot Schematics ------------------ T-07 Excavator | -7/Zion | Archive B-48 Gladiator | -7/Zion | Archive A-02 Transporter | -7/Zion | Archive H-77 Assassin | -7/Zion | Archive A-15 Conveyor | -6/Data Miner | Free H-66 Slayer | -6/Data Miner | Free B-60 Warrior | -6/Data Miner | Free L-61 Swordsman | -6/Data Miner | Free G-67 Veteran | -6/Data Miner | Free Fabricated ------------ Field Propulsion Array | x1 | -6/Factory Lrg. Storage Unit | x1 | -6/Factory Field Propulsion Array | x1 | -6/Factory Phasing Sabre | x1 | -6/Factory Enh. Quantum Rifle | x2 | -5/Factory | Preloaded Adv. Sensor Array | x1 | -5/Factory Alien Tech Used ----------------- None Achievements -------------- Batter Up Brute Force Main Advantage Prison Break Project G-00 Revising The Future Tester Challenges ------------ None Game ------ Seed ParticlePointyShifter Manual? 0 Play Time 04:51:00 Cumulative 100.0 hours Start 2024.04.16 @ 22:10:52 End 2024.04.17 @ 13:33:40 Sessions 3 Manual Loads 0 Difficulty Rogue Special Mode None Game No. 124 Rogue 124 Adventurer 0 Explorer 0 Win Type - Total 1 Types 1/0/0/0/0/0/0/0/0 Lore% 43 Gallery% 50 Achievement% 48 Wizard Run 0 Options --------- Layout 1 ASCII 0 Keyboard 0 Movement Mouse Keybinds 0 Fullscreen 2 Font 32/Smallcaps Map View 50x40 Zoom Use 0% Tactical HUD 1 Map Filters NONE Filters NONE Steam 1 RUN: ae37b6d3-bfe6-412e-b90b-238b9da2f841